[Event "Titled Tuesday Blitz June 13 Early 2023"]
[White "Bellissimo, Joseph F."]
[Black "Skvortsov, Andrei"]
[WhiteFideId "2609843"]
[BlackFideId "24108600"]
[WhiteElo "2103"]
[BlackElo "2259"]
[Result "0-1"]
[Round "2"]
[TimeControl "180+2"]
[Date "2023.06.13"]
[WhiteClock "0:00:09"]
[BlackClock "0:00:11"]
[Board "115"]

1. e4 {[%clk 0:03:00]}  d5 {[%clk 0:02:55]} 2. exd5 {[%clk 0:03:00]}  Qxd5 {[%clk 0:02:56]} 3. Nc3 {[%clk 0:02:59]}  Qe5+ {[%clk 0:02:56]} 4. Be2 {[%clk 0:02:58]}  Bg4 {[%clk 0:02:56]} 5. d4 {[%clk 0:02:57]}  Bxe2 {[%clk 0:02:54]} 6. Ngxe2 {[%clk 0:02:55]}  Qa5 {[%clk 0:02:54]} 7. O-O {[%clk 0:02:54]}  Nf6 {[%clk 0:02:54]} 8. d5 {[%clk 0:02:50]}  c6 {[%clk 0:02:53]} 9. b4 {[%clk 0:02:40]}  Qd8 {[%clk 0:02:49]} 10. dxc6 {[%clk 0:02:32]}  Nxc6 {[%clk 0:02:50]} 11. b5 {[%clk 0:02:29]}  Ne5 {[%clk 0:02:46]} 12. Bf4 {[%clk 0:02:26]}  Ng6 {[%clk 0:02:45]} 13. Bg5 {[%clk 0:02:21]}  e6 {[%clk 0:02:45]} 14. Bxf6 {[%clk 0:02:07]}  gxf6 {[%clk 0:02:43]} 15. Nd4 {[%clk 0:02:01]}  Bc5 {[%clk 0:02:41]} 16. Nce2 {[%clk 0:01:53]}  O-O {[%clk 0:02:33]} 17. c4 {[%clk 0:01:48]}  f5 {[%clk 0:02:31]} 18. Qd2 {[%clk 0:01:37]}  Qf6 {[%clk 0:02:28]} 19. Nb3 {[%clk 0:01:28]}  Rfd8 {[%clk 0:02:25]} 20. Qh6 {[%clk 0:01:19]}  Bf8 {[%clk 0:02:23]} 21. Qe3 {[%clk 0:01:16]}  b6 {[%clk 0:02:15]} 22. a4 {[%clk 0:01:13]}  Bb4 {[%clk 0:02:14]} 23. a5 {[%clk 0:01:10]}  bxa5 {[%clk 0:02:14]} 24. Nxa5 {[%clk 0:01:11]}  Bd2 {[%clk 0:02:10]} 25. Qb3 {[%clk 0:01:08]}  Bxa5 {[%clk 0:01:58]} 26. Rxa5 {[%clk 0:01:09]}  Rd2 {[%clk 0:01:57]} 27. Ng3 {[%clk 0:01:02]}  Nf4 {[%clk 0:01:39]} 28. b6 {[%clk 0:00:57]}  Rd3 {[%clk 0:01:18]} 29. b7 {[%clk 0:00:37]}  Rb8 {[%clk 0:01:18]} 30. Qb4 {[%clk 0:00:35]}  Qd4 {[%clk 0:00:32]} 31. Qb1 {[%clk 0:00:17]}  Rxg3 {[%clk 0:00:23]} 32. hxg3 {[%clk 0:00:16]}  Ne2+ {[%clk 0:00:22]} 33. Kh1 {[%clk 0:00:16]}  Qf6 {[%clk 0:00:14]} 34. Qe4 {[%clk 0:00:07]}  fxe4 {[%clk 0:00:12]} 35. Rh5 {[%clk 0:00:08]}  Nxg3+ {[%clk 0:00:11]} 36. fxg3 {[%clk 0:00:09]}  Qxf1+ {[%clk 0:00:11]} 37. Kh2 {[%clk 0:00:10]}  Rxb7 {[%clk 0:00:11]} 38. Rg5+ {[%clk 0:00:10]}  Kf8 {[%clk 0:00:11]} 39. Rf5 {[%clk 0:00:09]}  Qxf5 {[%clk 0:00:11]} 0-1


[Site "https://www.chess.com"]

[Event "Titled Tuesday Blitz June 13 Early 2023"]
[White "Pastar, Slaven"]
[Black "rikchessmx"]
[WhiteFideId "14402718"]
[WhiteElo "2219"]
[BlackElo "2312"]
[Result "1-0"]
[Round "2"]
[TimeControl "180+2"]
[Date "2023.06.13"]
[WhiteClock "0:01:15"]
[BlackClock "0:00:26"]
[Board "118"]

1. b3 {[%clk 0:03:00]}  a5 {[%clk 0:02:45]} 2. Bb2 {[%clk 0:03:01]}  a4 {[%clk 0:02:45]} 3. c4 {[%clk 0:03:01]}  Nf6 {[%clk 0:02:44]} 4. b4 {[%clk 0:02:59]}  d5 {[%clk 0:02:42]} 5. e3 {[%clk 0:02:57]}  c6 {[%clk 0:02:40]} 6. a3 {[%clk 0:02:56]}  dxc4 {[%clk 0:02:39]} 7. Bxc4 {[%clk 0:02:55]}  b5 {[%clk 0:02:39]} 8. Be2 {[%clk 0:02:53]}  Bf5 {[%clk 0:02:38]} 9. d3 {[%clk 0:02:49]}  e6 {[%clk 0:02:37]} 10. Nf3 {[%clk 0:02:49]}  Be7 {[%clk 0:02:35]} 11. Nh4 {[%clk 0:02:46]}  Bg6 {[%clk 0:02:33]} 12. O-O {[%clk 0:02:45]}  Qc7 {[%clk 0:02:25]} 13. Nd2 {[%clk 0:02:14]}  c5 {[%clk 0:01:35]} 14. Rc1 {[%clk 0:02:10]}  Qb6 {[%clk 0:01:35]} 15. bxc5 {[%clk 0:02:07]}  Bxc5 {[%clk 0:01:35]} 16. Nxg6 {[%clk 0:01:57]}  hxg6 {[%clk 0:01:34]} 17. Bf3 {[%clk 0:01:56]}  Ra7 {[%clk 0:01:31]} 18. Qc2 {[%clk 0:01:52]}  Nbd7 {[%clk 0:01:21]} 19. d4 {[%clk 0:01:43]}  Bd6 {[%clk 0:01:15]} 20. Qc8+ {[%clk 0:01:38]}  Qd8 {[%clk 0:01:13]} 21. Qxd8+ {[%clk 0:01:38]}  Kxd8 {[%clk 0:01:13]} 22. g3 {[%clk 0:01:37]}  b4 {[%clk 0:01:08]} 23. Nc4 {[%clk 0:01:28]}  bxa3 {[%clk 0:01:08]} 24. Nxa3 {[%clk 0:01:27]}  Ke7 {[%clk 0:01:03]} 25. Nb5 {[%clk 0:01:24]}  Rb8 {[%clk 0:00:26]} 26. Nxd6 {[%clk 0:01:15]} 1-0


[Site "https://www.chess.com"]

[Event "Titled Tuesday Blitz June 13 Early 2023"]
[White "Girya, Olga"]
[Black "Putri, Regita Desyari"]
[WhiteFideId "4195752"]
[BlackFideId "7109083"]
[WhiteElo "2263"]
[BlackElo "1930"]
[Result "1-0"]
[Round "2"]
[TimeControl "180+2"]
[Date "2023.06.13"]
[WhiteClock "0:00:42"]
[BlackClock "0:00:00"]
[Board "119"]

1. d4 {[%clk 0:03:00]}  Nf6 {[%clk 0:02:56]} 2. Nf3 {[%clk 0:03:01]}  e6 {[%clk 0:02:54]} 3. c4 {[%clk 0:03:01]}  b6 {[%clk 0:02:53]} 4. g3 {[%clk 0:03:00]}  Ba6 {[%clk 0:02:53]} 5. b3 {[%clk 0:03:00]}  Bb4+ {[%clk 0:02:52]} 6. Bd2 {[%clk 0:03:00]}  Be7 {[%clk 0:02:51]} 7. Bg2 {[%clk 0:03:00]}  c6 {[%clk 0:02:49]} 8. Nc3 {[%clk 0:02:40]}  d5 {[%clk 0:02:37]} 9. Ne5 {[%clk 0:02:35]}  O-O {[%clk 0:02:35]} 10. O-O {[%clk 0:02:33]}  Bb7 {[%clk 0:02:03]} 11. Rc1 {[%clk 0:02:26]}  c5 {[%clk 0:01:52]} 12. dxc5 {[%clk 0:02:11]}  bxc5 {[%clk 0:01:47]} 13. cxd5 {[%clk 0:02:01]}  exd5 {[%clk 0:01:43]} 14. Bg5 {[%clk 0:01:59]}  Na6 {[%clk 0:01:05]} 15. Nd3 {[%clk 0:01:18]}  Rc8 {[%clk 0:00:27]} 16. Nf4 {[%clk 0:01:07]}  h6 {[%clk 0:00:09]} 17. Bxf6 {[%clk 0:01:07]}  Bxf6 {[%clk 0:00:10]} 18. Ncxd5 {[%clk 0:01:05]}  Bxd5 {[%clk 0:00:10]} 19. Nxd5 {[%clk 0:01:03]}  Bd4 {[%clk 0:00:04]} 20. e3 {[%clk 0:01:01]}  Bb2 {[%clk 0:00:04]} 21. Rc2 {[%clk 0:00:56]}  Be5 {[%clk 0:00:05]} 22. a3 {[%clk 0:00:54]}  Qa5 {[%clk 0:00:04]} 23. Ne7+ {[%clk 0:00:52]}  Kh8 {[%clk 0:00:04]} 24. Nxc8 {[%clk 0:00:52]}  Rxc8 {[%clk 0:00:05]} 25. Qd5 {[%clk 0:00:49]}  Bf6 {[%clk 0:00:04]} 26. Qxf7 {[%clk 0:00:47]}  Rb8 {[%clk 0:00:00]} 27. Be4 {[%clk 0:00:42]} 1-0


[Site "https://www.chess.com"]

[Event "Titled Tuesday Blitz June 13 Early 2023"]
[White "Chor, Kevin"]
[Black "Vila Dupla, Aurelio"]
[WhiteFideId "2090740"]
[BlackFideId "2203383"]
[WhiteElo "2565"]
[BlackElo "2009"]
[Result "1/2-1/2"]
[Round "2"]
[TimeControl "180+2"]
[Date "2023.06.13"]
[WhiteClock "0:00:07"]
[BlackClock "0:00:03"]
[Board "120"]

1. d4 {[%clk 0:03:00]}  Nf6 {[%clk 0:02:58]} 2. Bf4 {[%clk 0:03:00]}  g6 {[%clk 0:02:58]} 3. Nc3 {[%clk 0:02:59]}  d5 {[%clk 0:02:58]} 4. Qd2 {[%clk 0:02:58]}  Bg7 {[%clk 0:02:57]} 5. h4 {[%clk 0:02:56]}  h5 {[%clk 0:02:53]} 6. Nf3 {[%clk 0:02:55]}  Nc6 {[%clk 0:02:50]} 7. e3 {[%clk 0:02:50]}  a6 {[%clk 0:02:41]} 8. Ne5 {[%clk 0:02:48]}  Ng4 {[%clk 0:02:25]} 9. Nxg4 {[%clk 0:02:27]}  Bxg4 {[%clk 0:02:05]} 10. f3 {[%clk 0:02:26]}  Bf5 {[%clk 0:01:56]} 11. O-O-O {[%clk 0:02:22]}  Qd7 {[%clk 0:01:43]} 12. g4 {[%clk 0:02:05]}  hxg4 {[%clk 0:01:41]} 13. e4 {[%clk 0:02:05]}  Be6 {[%clk 0:01:30]} 14. Bg2 {[%clk 0:01:14]}  gxf3 {[%clk 0:01:13]} 15. Bxf3 {[%clk 0:01:10]}  Nxd4 {[%clk 0:01:13]} 16. Qg2 {[%clk 0:00:58]}  Nxf3 {[%clk 0:01:07]} 17. Nxd5 {[%clk 0:00:58]}  Bxd5 {[%clk 0:00:27]} 18. Rxd5 {[%clk 0:00:59]}  Qe6 {[%clk 0:00:26]} 19. Qxf3 {[%clk 0:00:57]}  c6 {[%clk 0:00:26]} 20. Rd3 {[%clk 0:00:54]}  Qf6 {[%clk 0:00:22]} 21. e5 {[%clk 0:00:36]}  Qf5 {[%clk 0:00:15]} 22. Qe3 {[%clk 0:00:32]}  O-O {[%clk 0:00:12]} 23. h5 {[%clk 0:00:27]}  Rfd8 {[%clk 0:00:05]} 24. hxg6 {[%clk 0:00:24]}  fxg6 {[%clk 0:00:05]} 25. Rb3 {[%clk 0:00:21]}  Rd5 {[%clk 0:00:03]} 26. Rxb7 {[%clk 0:00:20]}  Bxe5 {[%clk 0:00:03]} 27. Bxe5 {[%clk 0:00:17]}  Qxe5 {[%clk 0:00:02]} 28. Qh6 {[%clk 0:00:17]}  Qg5+ {[%clk 0:00:03]} 29. Qxg5 {[%clk 0:00:17]}  Rxg5 {[%clk 0:00:03]} 30. Rxe7 {[%clk 0:00:18]}  Rd8 {[%clk 0:00:02]} 31. b3 {[%clk 0:00:18]}  Rg2 {[%clk 0:00:02]} 32. Rhh7 {[%clk 0:00:15]}  Rdd2 {[%clk 0:00:03]} 33. Rhg7+ {[%clk 0:00:15]}  Kh8 {[%clk 0:00:03]} 34. Rh7+ {[%clk 0:00:15]}  Kg8 {[%clk 0:00:03]} 35. Rhg7+ {[%clk 0:00:07]}  Kf8 {[%clk 0:00:03]} 36. Rgf7+ {[%clk 0:00:07]}  Kg8 {[%clk 0:00:03]} 37. Rg7+ {[%clk 0:00:07]} 1/2-1/2


[Site "https://www.chess.com"]

[Event "Titled Tuesday Blitz June 13 Early 2023"]
[White "Nikulina, Alena"]
[Black "Vovk, Orest"]
[WhiteFideId "4172051"]
[BlackFideId "14113490"]
[WhiteElo "1608"]
[BlackElo "2215"]
[Result "0-1"]
[Round "2"]
[TimeControl "180+2"]
[Date "2023.06.13"]
[WhiteClock "0:00:00"]
[BlackClock "0:00:05"]
[Board "122"]

1. e4 {[%clk 0:03:00]}  g5 {[%clk 0:02:59]} 2. d4 {[%clk 0:02:52]}  g4 {[%clk 0:02:55]} 3. h3 {[%clk 0:02:49]}  d5 {[%clk 0:02:53]} 4. e5 {[%clk 0:02:46]}  c5 {[%clk 0:02:48]} 5. c3 {[%clk 0:02:43]}  Nc6 {[%clk 0:02:48]} 6. hxg4 {[%clk 0:02:39]}  Qb6 {[%clk 0:02:44]} 7. Bd3 {[%clk 0:02:23]}  cxd4 {[%clk 0:02:41]} 8. cxd4 {[%clk 0:02:07]}  Qxd4 {[%clk 0:02:41]} 9. Nf3 {[%clk 0:02:03]}  Qxg4 {[%clk 0:02:38]} 10. Kf1 {[%clk 0:01:29]}  Bg7 {[%clk 0:01:25]} 11. Rh4 {[%clk 0:01:12]}  Qd7 {[%clk 0:01:14]} 12. e6 {[%clk 0:00:58]}  Qxe6 {[%clk 0:01:10]} 13. Ng5 {[%clk 0:00:51]}  Qd6 {[%clk 0:01:00]} 14. Qh5 {[%clk 0:00:36]}  Be6 {[%clk 0:00:33]} 15. Bf4 {[%clk 0:00:30]}  Ne5 {[%clk 0:00:26]} 16. Bb5+ {[%clk 0:00:24]}  Kd8 {[%clk 0:00:16]} 17. Nc3 {[%clk 0:00:17]}  Nf6 {[%clk 0:00:14]} 18. Qe2 {[%clk 0:00:14]}  Nfd7 {[%clk 0:00:10]} 19. Bxd7 {[%clk 0:00:09]}  Kxd7 {[%clk 0:00:09]} 20. Nb5 {[%clk 0:00:07]}  Qa6 {[%clk 0:00:05]} 21. Bxe5 {[%clk 0:00:05]}  Bxe5 {[%clk 0:00:05]} 22. Qxe5 {[%clk 0:00:03]}  Qxb5+ {[%clk 0:00:05]} 23. Kg1 {[%clk 0:00:03]}  Rhg8 {[%clk 0:00:06]} 24. Nxe6 {[%clk 0:00:02]}  fxe6 {[%clk 0:00:05]} 25. Re1 {[%clk 0:00:00]}  Rg6 {[%clk 0:00:05]} 0-1


[Site "https://www.chess.com"]

[Event "Titled Tuesday Blitz June 13 Early 2023"]
[White "Sadhwani, Raunak"]
[Black "Urquhart, Ed"]
[WhiteFideId "35093487"]
[BlackFideId "2603748"]
[WhiteElo "2631"]
[BlackElo "2184"]
[Result "1-0"]
[Round "2"]
[TimeControl "180+2"]
[Date "2023.06.13"]
[WhiteClock "0:00:23"]
[BlackClock "0:00:07"]
[Board "124"]

1. Nf3 {[%clk 0:03:00]}  Nf6 {[%clk 0:02:58]} 2. c4 {[%clk 0:03:00]}  e6 {[%clk 0:02:58]} 3. g3 {[%clk 0:02:59]}  d5 {[%clk 0:02:58]} 4. b3 {[%clk 0:02:58]}  Be7 {[%clk 0:02:59]} 5. Bg2 {[%clk 0:02:57]}  O-O {[%clk 0:02:59]} 6. Bb2 {[%clk 0:02:58]}  b6 {[%clk 0:02:59]} 7. O-O {[%clk 0:02:56]}  Bb7 {[%clk 0:02:59]} 8. e3 {[%clk 0:02:52]}  c5 {[%clk 0:02:59]} 9. Qe2 {[%clk 0:02:52]}  Nc6 {[%clk 0:02:59]} 10. d3 {[%clk 0:02:52]}  Qc7 {[%clk 0:02:51]} 11. Na3 {[%clk 0:02:35]}  a6 {[%clk 0:02:50]} 12. Nc2 {[%clk 0:02:34]}  Rad8 {[%clk 0:02:48]} 13. Nh4 {[%clk 0:02:28]}  Qb8 {[%clk 0:02:45]} 14. f4 {[%clk 0:02:28]}  dxc4 {[%clk 0:02:43]} 15. bxc4 {[%clk 0:02:28]}  Rd7 {[%clk 0:02:28]} 16. g4 {[%clk 0:02:26]}  Rfd8 {[%clk 0:02:27]} 17. g5 {[%clk 0:02:26]}  Ne8 {[%clk 0:02:23]} 18. Rad1 {[%clk 0:02:27]}  b5 {[%clk 0:02:17]} 19. cxb5 {[%clk 0:01:51]}  axb5 {[%clk 0:02:18]} 20. Rf3 {[%clk 0:01:37]}  Nb4 {[%clk 0:02:03]} 21. Nxb4 {[%clk 0:01:26]}  Bxf3 {[%clk 0:02:02]} 22. Nxf3 {[%clk 0:01:27]}  cxb4 {[%clk 0:02:02]} 23. Ne5 {[%clk 0:01:28]}  Rc7 {[%clk 0:01:59]} 24. Nc6 {[%clk 0:01:27]}  Rxc6 {[%clk 0:01:56]} 25. Bxc6 {[%clk 0:01:28]}  Qb6 {[%clk 0:01:43]} 26. Bf3 {[%clk 0:01:20]}  Nd6 {[%clk 0:01:43]} 27. Bd4 {[%clk 0:01:18]}  Qa6 {[%clk 0:01:38]} 28. Be5 {[%clk 0:01:02]}  Nf5 {[%clk 0:01:36]} 29. Be4 {[%clk 0:01:02]}  Qb6 {[%clk 0:01:30]} 30. Kf2 {[%clk 0:00:46]}  Rc8 {[%clk 0:01:29]} 31. h4 {[%clk 0:00:40]}  Bc5 {[%clk 0:01:17]} 32. d4 {[%clk 0:00:40]}  Bf8 {[%clk 0:01:17]} 33. h5 {[%clk 0:00:39]}  Rc3 {[%clk 0:01:15]} 34. Rd3 {[%clk 0:00:36]}  Qa5 {[%clk 0:01:07]} 35. d5 {[%clk 0:00:30]}  Rxd3 {[%clk 0:01:06]} 36. Bxd3 {[%clk 0:00:29]}  Bc5 {[%clk 0:00:51]} 37. Qc2 {[%clk 0:00:23]}  Qb6 {[%clk 0:00:44]} 38. Bxf5 {[%clk 0:00:23]}  exf5 {[%clk 0:00:07]} 39. Bd4 {[%clk 0:00:23]} 1-0


[Site "https://www.chess.com"]

[Event "Titled Tuesday Blitz June 13 Early 2023"]
[White "Sattarov, Bobir"]
[Black "LeoLV10"]
[WhiteFideId "14203081"]
[WhiteElo "2351"]
[BlackElo "2419"]
[Result "1-0"]
[Round "2"]
[TimeControl "180+2"]
[Date "2023.06.13"]
[WhiteClock "0:01:07"]
[BlackClock "0:00:01"]
[Board "129"]

1. e4 {[%clk 0:03:00]}  c6 {[%clk 0:02:58]} 2. d4 {[%clk 0:02:57]}  d5 {[%clk 0:02:59]} 3. exd5 {[%clk 0:02:58]}  cxd5 {[%clk 0:03:00]} 4. Bd3 {[%clk 0:02:58]}  Nc6 {[%clk 0:02:59]} 5. c3 {[%clk 0:02:59]}  Nf6 {[%clk 0:03:00]} 6. Bf4 {[%clk 0:02:59]}  g6 {[%clk 0:03:01]} 7. Qc2 {[%clk 0:02:57]}  Bg7 {[%clk 0:03:00]} 8. Nd2 {[%clk 0:02:55]}  a6 {[%clk 0:02:58]} 9. Ngf3 {[%clk 0:02:55]}  O-O {[%clk 0:02:57]} 10. O-O {[%clk 0:02:54]}  b5 {[%clk 0:02:52]} 11. b4 {[%clk 0:02:53]}  Bd7 {[%clk 0:02:41]} 12. Nb3 {[%clk 0:02:50]}  Re8 {[%clk 0:02:34]} 13. Nc5 {[%clk 0:02:48]}  Nh5 {[%clk 0:02:33]} 14. Bg5 {[%clk 0:02:09]}  f6 {[%clk 0:02:32]} 15. Bd2 {[%clk 0:01:55]}  e5 {[%clk 0:02:32]} 16. Qb3 {[%clk 0:01:55]}  Ne7 {[%clk 0:01:54]} 17. dxe5 {[%clk 0:01:51]}  fxe5 {[%clk 0:01:55]} 18. Rfe1 {[%clk 0:01:50]}  Kh8 {[%clk 0:00:50]} 19. Nxe5 {[%clk 0:01:46]}  Bxe5 {[%clk 0:00:50]} 20. Rxe5 {[%clk 0:01:47]}  Nc6 {[%clk 0:00:35]} 21. Rxe8+ {[%clk 0:01:43]}  Qxe8 {[%clk 0:00:36]} 22. Qxd5 {[%clk 0:01:39]}  Nf6 {[%clk 0:00:36]} 23. Qd6 {[%clk 0:01:38]}  Qe5 {[%clk 0:00:24]} 24. Bf4 {[%clk 0:01:26]}  Qxd6 {[%clk 0:00:20]} 25. Bxd6 {[%clk 0:01:27]}  Kg7 {[%clk 0:00:15]} 26. a3 {[%clk 0:01:16]}  Be8 {[%clk 0:00:14]} 27. c4 {[%clk 0:01:15]}  bxc4 {[%clk 0:00:09]} 28. Bxc4 {[%clk 0:01:16]}  a5 {[%clk 0:00:09]} 29. b5 {[%clk 0:01:12]}  Nd4 {[%clk 0:00:08]} 30. Be5 {[%clk 0:01:11]}  Bxb5 {[%clk 0:00:04]} 31. Bxb5 {[%clk 0:01:08]}  Nxb5 {[%clk 0:00:05]} 32. Nd7 {[%clk 0:01:07]}  Rd8 {[%clk 0:00:02]} 33. Bxf6+ {[%clk 0:01:06]}  Kf7 {[%clk 0:00:01]} 34. Bxd8 {[%clk 0:01:07]} 1-0


[Site "https://www.chess.com"]

[Event "Titled Tuesday Blitz June 13 Early 2023"]
[White "KorolDimitriy75"]
[Black "carokannlover213"]
[WhiteElo "2413"]
[BlackElo "2754"]
[Result "1/2-1/2"]
[Round "2"]
[TimeControl "180+2"]
[Date "2023.06.13"]
[WhiteClock "0:01:09"]
[BlackClock "0:00:10"]
[Board "131"]

1. d4 {[%clk 0:02:59]}  Nf6 {[%clk 0:02:59]} 2. c4 {[%clk 0:02:58]}  g6 {[%clk 0:02:58]} 3. Nc3 {[%clk 0:02:58]}  Bg7 {[%clk 0:02:58]} 4. e4 {[%clk 0:02:59]}  d6 {[%clk 0:02:59]} 5. Nf3 {[%clk 0:02:59]}  O-O {[%clk 0:02:58]} 6. Be2 {[%clk 0:03:00]}  e5 {[%clk 0:02:59]} 7. dxe5 {[%clk 0:03:00]}  dxe5 {[%clk 0:02:59]} 8. Qxd8 {[%clk 0:03:01]}  Rxd8 {[%clk 0:02:59]} 9. Bg5 {[%clk 0:03:01]}  Re8 {[%clk 0:02:57]} 10. O-O-O {[%clk 0:03:01]}  Bg4 {[%clk 0:02:29]} 11. h3 {[%clk 0:02:33]}  Bxf3 {[%clk 0:02:25]} 12. Bxf3 {[%clk 0:02:34]}  Nc6 {[%clk 0:02:26]} 13. Nd5 {[%clk 0:02:22]}  Nxd5 {[%clk 0:02:22]} 14. cxd5 {[%clk 0:02:22]}  Nd4 {[%clk 0:02:19]} 15. Be3 {[%clk 0:02:20]}  Nxf3 {[%clk 0:02:10]} 16. gxf3 {[%clk 0:02:19]}  c6 {[%clk 0:02:10]} 17. dxc6 {[%clk 0:02:14]}  Rec8 {[%clk 0:02:03]} 18. Rd7 {[%clk 0:02:05]}  Rxc6+ {[%clk 0:02:02]} 19. Kb1 {[%clk 0:02:05]}  b6 {[%clk 0:01:59]} 20. Rhd1 {[%clk 0:02:04]}  Bf6 {[%clk 0:01:32]} 21. Rb7 {[%clk 0:01:52]}  Bh4 {[%clk 0:00:46]} 22. Rdd7 {[%clk 0:01:48]}  Rf6 {[%clk 0:00:45]} 23. Bh6 {[%clk 0:01:24]}  g5 {[%clk 0:00:41]} 24. Rxa7 {[%clk 0:01:23]}  Rc8 {[%clk 0:00:29]} 25. Rac7 {[%clk 0:01:20]}  Re8 {[%clk 0:00:21]} 26. Re7 {[%clk 0:01:20]}  Ra8 {[%clk 0:00:21]} 27. Ra7 {[%clk 0:01:12]}  Rd8 {[%clk 0:00:20]} 28. Rad7 {[%clk 0:01:11]}  Ra8 {[%clk 0:00:10]} 29. Ra7 {[%clk 0:01:10]}  Rd8 {[%clk 0:00:10]} 30. Rad7 {[%clk 0:01:10]}  Ra8 {[%clk 0:00:10]} 31. Ra7 {[%clk 0:01:09]} 1/2-1/2


[Site "https://www.chess.com"]

[Event "Titled Tuesday Blitz June 13 Early 2023"]
[White "Topalov, Aleksandar"]
[Black "Vaibhav, Suri"]
[WhiteFideId "925659"]
[BlackFideId "5045185"]
[WhiteElo "2151"]
[BlackElo "2494"]
[Result "0-1"]
[Round "2"]
[TimeControl "180+2"]
[Date "2023.06.13"]
[WhiteClock "0:00:10"]
[BlackClock "0:00:51"]
[Board "132"]

1. b3 {[%clk 0:03:00]}  e5 {[%clk 0:02:57]} 2. Bb2 {[%clk 0:03:01]}  Nc6 {[%clk 0:02:58]} 3. c4 {[%clk 0:03:00]}  g6 {[%clk 0:02:59]} 4. Nc3 {[%clk 0:02:59]}  Bg7 {[%clk 0:03:00]} 5. g3 {[%clk 0:02:59]}  Nge7 {[%clk 0:03:00]} 6. Bg2 {[%clk 0:03:00]}  O-O {[%clk 0:03:01]} 7. a3 {[%clk 0:02:59]}  d6 {[%clk 0:03:02]} 8. e3 {[%clk 0:02:59]}  Be6 {[%clk 0:03:02]} 9. Nd5 {[%clk 0:02:58]}  Qd7 {[%clk 0:03:01]} 10. Ne2 {[%clk 0:02:58]}  Rab8 {[%clk 0:03:00]} 11. O-O {[%clk 0:02:57]}  b5 {[%clk 0:03:01]} 12. Qc2 {[%clk 0:02:50]}  bxc4 {[%clk 0:02:51]} 13. bxc4 {[%clk 0:02:50]}  h5 {[%clk 0:02:51]} 14. d3 {[%clk 0:02:45]}  h4 {[%clk 0:02:51]} 15. Bc3 {[%clk 0:02:41]}  h3 {[%clk 0:02:50]} 16. Bh1 {[%clk 0:02:41]}  Nf5 {[%clk 0:02:44]} 17. Rab1 {[%clk 0:02:36]}  Nce7 {[%clk 0:02:43]} 18. Rxb8 {[%clk 0:02:31]}  Rxb8 {[%clk 0:02:44]} 19. Rb1 {[%clk 0:02:31]}  Rxb1+ {[%clk 0:02:42]} 20. Qxb1 {[%clk 0:02:31]}  c6 {[%clk 0:02:43]} 21. Qb8+ {[%clk 0:02:24]}  Kh7 {[%clk 0:02:43]} 22. Nxe7 {[%clk 0:02:22]}  Nxe7 {[%clk 0:02:43]} 23. Ba5 {[%clk 0:02:05]}  c5 {[%clk 0:02:41]} 24. Qb5 {[%clk 0:02:01]}  Qc8 {[%clk 0:02:29]} 25. Nc3 {[%clk 0:01:56]}  Bd7 {[%clk 0:02:18]} 26. Qb3 {[%clk 0:01:48]}  Bc6 {[%clk 0:02:14]} 27. Nd5 {[%clk 0:01:40]}  Nxd5 {[%clk 0:02:14]} 28. cxd5 {[%clk 0:01:39]}  Bd7 {[%clk 0:02:15]} 29. Kf1 {[%clk 0:01:18]}  Qa6 {[%clk 0:02:14]} 30. Bd2 {[%clk 0:01:12]}  Bb5 {[%clk 0:02:11]} 31. Bf3 {[%clk 0:00:43]}  Bxd3+ {[%clk 0:02:10]} 32. Ke1 {[%clk 0:00:43]}  e4 {[%clk 0:02:08]} 33. Bg4 {[%clk 0:00:41]}  c4 {[%clk 0:02:07]} 34. Qb4 {[%clk 0:00:39]}  Qb6 {[%clk 0:01:13]} 35. Bxh3 {[%clk 0:00:26]}  c3 {[%clk 0:01:05]} 36. Bxc3 {[%clk 0:00:14]}  Bxc3+ {[%clk 0:01:05]} 37. Qxc3 {[%clk 0:00:14]}  Qb1+ {[%clk 0:01:06]} 38. Kd2 {[%clk 0:00:14]}  Qa2+ {[%clk 0:01:06]} 39. Kc1 {[%clk 0:00:14]}  Qxf2 {[%clk 0:01:06]} 40. Qc7 {[%clk 0:00:12]}  Qxe3+ {[%clk 0:00:55]} 41. Kb2 {[%clk 0:00:12]}  Qf2+ {[%clk 0:00:52]} 42. Kc1 {[%clk 0:00:12]}  e3 {[%clk 0:00:51]} 43. Be6 {[%clk 0:00:10]}  Qd2# {[%clk 0:00:51]} 0-1


[Site "https://www.chess.com"]

[Event "Titled Tuesday Blitz June 13 Early 2023"]
[White "Karthik Rajaa"]
[Black "Smiechu"]
[WhiteFideId "25035215"]
[WhiteElo "2215"]
[BlackElo "2408"]
[Result "1-0"]
[Round "2"]
[TimeControl "180+2"]
[Date "2023.06.13"]
[WhiteClock "0:00:49"]
[BlackClock "0:00:42"]
[Board "134"]

1. Nf3 {[%clk 0:03:00]}  Nf6 {[%clk 0:02:59]} 2. b3 {[%clk 0:03:00]}  c5 {[%clk 0:02:58]} 3. Bb2 {[%clk 0:03:00]}  Nc6 {[%clk 0:02:59]} 4. g3 {[%clk 0:02:58]}  d6 {[%clk 0:02:59]} 5. Bg2 {[%clk 0:02:58]}  e5 {[%clk 0:03:00]} 6. O-O {[%clk 0:02:58]}  g6 {[%clk 0:03:00]} 7. c4 {[%clk 0:02:58]}  Bg7 {[%clk 0:03:00]} 8. Nc3 {[%clk 0:02:58]}  O-O {[%clk 0:03:00]} 9. d3 {[%clk 0:02:58]}  a6 {[%clk 0:02:59]} 10. Nd2 {[%clk 0:02:54]}  Rb8 {[%clk 0:02:56]} 11. Nde4 {[%clk 0:02:54]}  Qe7 {[%clk 0:02:39]} 12. Nxf6+ {[%clk 0:02:51]}  Qxf6 {[%clk 0:02:37]} 13. Nd5 {[%clk 0:02:51]}  Qd8 {[%clk 0:02:37]} 14. e3 {[%clk 0:02:49]}  Ne7 {[%clk 0:02:34]} 15. Nxe7+ {[%clk 0:02:31]}  Qxe7 {[%clk 0:02:34]} 16. Qd2 {[%clk 0:02:31]}  b5 {[%clk 0:02:29]} 17. Rac1 {[%clk 0:02:17]}  Bb7 {[%clk 0:02:27]} 18. Bxb7 {[%clk 0:02:17]}  Rxb7 {[%clk 0:02:28]} 19. d4 {[%clk 0:02:08]}  exd4 {[%clk 0:02:14]} 20. exd4 {[%clk 0:02:09]}  Rd8 {[%clk 0:02:10]} 21. Ba1 {[%clk 0:01:40]}  d5 {[%clk 0:01:42]} 22. cxb5 {[%clk 0:01:34]}  Rxb5 {[%clk 0:01:35]} 23. Rfe1 {[%clk 0:01:34]}  Qf8 {[%clk 0:01:15]} 24. Qd3 {[%clk 0:01:05]}  Ra5 {[%clk 0:01:00]} 25. a4 {[%clk 0:00:54]}  c4 {[%clk 0:00:42]} 26. Qd2 {[%clk 0:00:49]} 1-0


[Site "https://www.chess.com"]